Workbook

Sheet Stückanalyse
B2: Funktionen | D2: bX2 | E2: cX | F2: d | G2: d/X | J2: X-Werte | K2: Y-Werte
B3: Gesamtkosten | C3: K= | E3: 6.8 | F3: 580 | I3: PAF1 | J3: =D15 -> 0 | K3: =F4 -> 85
B4: Preis-Absatz-Funktion 1 | C4: p1= | E4: -1.15 | F4: 85 | J4: =E15 -> 16 | K4: =F4+(E4*E15) -> 66.6
B5: Preis-Absatz-Funktion 2 | C5: p2= | E5: -2.4 | F5: 105 | I5: PAF2 | J5: =D16 -> 16 | K5: =F5+(E5*D16) -> 66.6
B6: Preis-Absatz-Funktion 3 | C6: p3= | E6: -0.95 | F6: 65 | J6: =E16 -> 28 | K6: =F5+(E5*E16) -> 37.8
I7: PAF3 | J7: =D17 -> 28 | K7: =F6+(E6*D17) -> 38.4
C8: Gewinnmaximum | J8: =E17 -> 68.42105263 | K8: =F6+(E6*E17) -> 0
E9: Gewinn | F9: Preis | G9: Menge | I9: K' | J9: 0 | K9: =F23 -> 6.8
C10: PAF1 | D10: =IF(AND(G10<E15,G10>D15),"definiert","nicht definiert") -> nicht definiert | E10: =IF(D10="definiert",(G10*F10)-(F3+(E3*G10)),"") ->  | F10: =IF(D10="definiert",F4+(E4*G10),"") ->  | G10: =ROUND((F27-F23)/(E27*-1),0) -> 34 | J10: =F32 -> 68.42105263 | K10: =F23 -> 6.8
C11: PAF2 | D11: =IF(AND(G11<E16,G11>D16),"definiert","nicht definiert") -> definiert | E11: =IF(D11="definiert",(G11*F11)-(F3+(E3*G11)),"") -> 424 | F11: =IF(D11="definiert",F5+(E5*G11),"") -> 57 | G11: =ROUND((F29-F23)/(E29*-1),0) -> 20 | I11: E'1 | J11: =D15 -> 0 | K11: =F27 -> 85
C12: PAF3 | D12: =IF(AND(G12<E17,G12>D17),"definiert","nicht definiert") -> definiert | E12: =IF(D12="definiert",(G12*F12)-(F3+(E3*G12)),"") -> 311.25 | F12: =IF(D12="definiert",F6+(E6*G12),"") -> 35.55 | G12: =ROUND((F31-F23)/(E31*-1),0) -> 31 | J12: =E15 -> 16 | K12: =F27+(E27*E15) -> 48.2
C13: Definitionsbereiche | F13: Cournotscher Punkt | I13: E'1/E'2 | J13: =E15 -> 16 | K13: =F27+(E27*E15) -> 48.2
D14: xmin | E14: xmax | J14: =D16 -> 16 | K14: =K15 -> 28.2
B15: =IF(AND(F5>F4,F5>F6),"PAF-Reihe OK","PAF-Reihe falsch") -> PAF-Reihe OK | C15: PAF1 | D15: 0 | E15: =ROUND((F5-F4)/(E4+E5*-1),0) -> 16 | F15: Gmax | G15: =MAX(E10:E12) -> 424 | I15: E'2 | J15: =D16 -> 16 | K15: =F29+(E29*D16) -> 28.2
C16: PAF2 | D16: =ROUND(E15,0) -> 16 | E16: =ROUND((F6-F5)/(E5+E6*-1),0) -> 28 | F16: XGmax | G16: =ROUND(VLOOKUP(G15,E10:G12,3),0) -> 20 | J16: =E16 -> 28 | K16: =F29+(E29*E16) -> -29.4
C17: PAF3 | D17: =E16 -> 28 | E17: =F32 -> 68.42105263 | F17: PGmax | G17: =VLOOKUP(G15,E10:G12,2) -> 57 | I17: E'2/E'3 | J17: =E16 -> 28 | K17: =K16 -> -29.4
J18: =D17 -> 28 | K18: =K19 -> 11.8
B19: Funktionen | D19: bX2 | E19: cX | F19: d | G19: d/X | I19: E'3 | J19: =D17 -> 28 | K19: =F31+(E31*D17) -> 11.8
B20: variable Gesamtkosten | C20: Kv= | E20: =E3 -> 6.8 | J20: =E17 -> 68.42105263 | K20: =F31+(E31*E17) -> -65
B21: Stückkosten | C21: k= | F21: =E3 -> 6.8 | G21: =F3 -> 580 | I21: XGmax | J21: =G16 -> 20 | K21: 0
B22: variable Stückkosten | C22: kv= | F22: =E3 -> 6.8 | J22: =G16 -> 20 | K22: =G17 -> 57
B23: Grenzkosten | C23: K'= | F23: =E3 -> 6.8 | I23: PGmax | J23: 0 | K23: =G17 -> 57
B24: fixe Gesamtkosten | C24: Kf= | F24: =F3 -> 580 | J24: =G16 -> 20 | K24: =G17 -> 57
B25: fixe Stückkosten | C25: kf= | G25: =F3 -> 580
B26: Erlös 1 | C26: E1= | D26: =E4 -> -1.15 | E26: =F4 -> 85
B27: Grenzerlös 1 | C27: E1'= | E27: =2*D26 -> -2.3 | F27: =E26 -> 85 | H27: Nach Klick auf 'Funktionen eingeben' können Sie eine lineare Kostenfunktion und eine Preis-Absatz-Funktion mit drei Bereichen eingeben. Aus der Tabelle 'Funktionen' können Sie auch Auswahlfunktionen direkt in die die Zellen E3-F6 kopieren. Es wird geprüft, ob bei den von Ihnen eingebenen Funktionen die mittlere Funktion (monopolistischer Bereich) den höchsten Y-Wert hat und die untere Funktionen (unterer atomistischer Bereich) den niedrigsten Y-Wert. Die Anwendung legt die Definitionsbereiche fest und ermittelt den Cournotschen Punkt.
B28: Erlös 2 | C28: E2= | D28: =E5 -> -2.4 | E28: =F5 -> 105
B29: Grenzerlös 2 | C29: E2'= | E29: =2*D28 -> -4.8 | F29: =E28 -> 105
B30: Erlös 3 | C30: E3= | D30: =E6 -> -0.95 | E30: =F6 -> 65
B31: Grenzerlös 3 | C31: E3'= | E31: =2*D30 -> -1.9 | F31: =E30 -> 65
B32: Sättigungsmenge | C32: xmax= | F32: =(F6/E6)*-1 -> 68.42105263

Sheet Gesamtanalyse
K2: X | L2: K | M2: E1 | N2: E2 | O2: E3 | P2: E-K | Q2: E | R2: K+G
K3: 0 | L3: =Stückanalyse!$F$3+(Stückanalyse!$E$3*Gesamtanalyse!K3) -> 580 | M3: =(Stückanalyse!$E$26*Gesamtanalyse!K3)+(Stückanalyse!$D$26*Gesamtanalyse!K3*Gesamtanalyse!K3) -> 0 | N3: =(Stückanalyse!$E$28*Gesamtanalyse!K3)+(Stückanalyse!$D$28*Gesamtanalyse!K3*Gesamtanalyse!K3) -> 0 | O3: =(Stückanalyse!$E$30*Gesamtanalyse!K3)+(Stückanalyse!$D$30*Gesamtanalyse!K3*Gesamtanalyse!K3) -> 0 | P3: =Q3-L3 -> -580 | Q3: =IF(AND($M3<$N3,$M3>$O3),M3,IF(AND($N3>$O3,$M3>$O3),N3,O3)) -> 0 | R3: =L3+$D$12 -> 1004.493075
K4: =K103/100 -> 0.6842105263 | L4: =Stückanalyse!$F$3+(Stückanalyse!$E$3*Gesamtanalyse!K4) -> 584.6526316 | M4: =(Stückanalyse!$E$26*Gesamtanalyse!K4)+(Stückanalyse!$D$26*Gesamtanalyse!K4*Gesamtanalyse!K4) -> 57.61952909 | N4: =(Stückanalyse!$E$28*Gesamtanalyse!K4)+(Stückanalyse!$D$28*Gesamtanalyse!K4*Gesamtanalyse!K4) -> 70.71855956 | O4: =(Stückanalyse!$E$30*Gesamtanalyse!K4)+(Stückanalyse!$D$30*Gesamtanalyse!K4*Gesamtanalyse!K4) -> 44.02894737 | P4: =Q4-L4 -> -527.0331025 | Q4: =IF(AND($M4<$N4,$M4>$O4),M4,IF(AND($N4>$O4,$M4>$O4),N4,O4)) -> 57.61952909 | R4: 1009.145706
K5: =$K$4+K4 -> 1.368421053 | L5: =Stückanalyse!$F$3+(Stückanalyse!$E$3*Gesamtanalyse!K5) -> 589.3052632 | M5: =(Stückanalyse!$E$26*Gesamtanalyse!K5)+(Stückanalyse!$D$26*Gesamtanalyse!K5*Gesamtanalyse!K5) -> 114.1623269 | N5: =(Stückanalyse!$E$28*Gesamtanalyse!K5)+(Stückanalyse!$D$28*Gesamtanalyse!K5*Gesamtanalyse!K5) -> 139.1900277 | O5: =(Stückanalyse!$E$30*Gesamtanalyse!K5)+(Stückanalyse!$D$30*Gesamtanalyse!K5*Gesamtanalyse!K5) -> 87.16842105 | P5: -475.1429363 | Q5: 114.1623269 | R5: 1013.798338
D6: X-Werte | E6: Y-Werte | K6: 2.052631579 | L6: =Stückanalyse!$F$3+(Stückanalyse!$E$3*Gesamtanalyse!K6) -> 593.9578947 | M6: =(Stückanalyse!$E$26*Gesamtanalyse!K6)+(Stückanalyse!$D$26*Gesamtanalyse!K6*Gesamtanalyse!K6) -> 169.6283934 | N6: =(Stückanalyse!$E$28*Gesamtanalyse!K6)+(Stückanalyse!$D$28*Gesamtanalyse!K6*Gesamtanalyse!K6) -> 205.4144044 | O6: =(Stückanalyse!$E$30*Gesamtanalyse!K6)+(Stückanalyse!$D$30*Gesamtanalyse!K6*Gesamtanalyse!K6) -> 129.4184211 | P6: -424.3295014 | Q6: 169.6283934 | R6: 1018.45097
C7: XGmax | D7: =Stückanalyse!G16 -> 20 | E7: 0 | K7: 2.736842105 | L7: =Stückanalyse!$F$3+(Stückanalyse!$E$3*Gesamtanalyse!K7) -> 598.6105263 | M7: =(Stückanalyse!$E$26*Gesamtanalyse!K7)+(Stückanalyse!$D$26*Gesamtanalyse!K7*Gesamtanalyse!K7) -> 224.0177285 | N7: =(Stückanalyse!$E$28*Gesamtanalyse!K7)+(Stückanalyse!$D$28*Gesamtanalyse!K7*Gesamtanalyse!K7) -> 269.3916898 | O7: =(Stückanalyse!$E$30*Gesamtanalyse!K7)+(Stückanalyse!$D$30*Gesamtanalyse!K7*Gesamtanalyse!K7) -> 170.7789474 | P7: -374.5927978 | Q7: 224.0177285 | R7: 1023.103601
D8: =Stückanalyse!G16 -> 20 | E8: =VLOOKUP(D12,P3:Q103,2,FALSE) -> 1144.072022 | K8: 3.421052632 | L8: =Stückanalyse!$F$3+(Stückanalyse!$E$3*Gesamtanalyse!K8) -> 603.2631579 | M8: =(Stückanalyse!$E$26*Gesamtanalyse!K8)+(Stückanalyse!$D$26*Gesamtanalyse!K8*Gesamtanalyse!K8) -> 277.3303324 | N8: =(Stückanalyse!$E$28*Gesamtanalyse!K8)+(Stückanalyse!$D$28*Gesamtanalyse!K8*Gesamtanalyse!K8) -> 331.1218837 | O8: =(Stückanalyse!$E$30*Gesamtanalyse!K8)+(Stückanalyse!$D$30*Gesamtanalyse!K8*Gesamtanalyse!K8) -> 211.25 | P8: -325.9328255 | Q8: 277.3303324 | R8: 1027.756233
C9: EGmax | D9: 0 | E9: =VLOOKUP(D12,P3:Q103,2,FALSE) -> 1144.072022 | K9: 4.105263158 | L9: =Stückanalyse!$F$3+(Stückanalyse!$E$3*Gesamtanalyse!K9) -> 607.9157895 | M9: =(Stückanalyse!$E$26*Gesamtanalyse!K9)+(Stückanalyse!$D$26*Gesamtanalyse!K9*Gesamtanalyse!K9) -> 329.566205 | N9: =(Stückanalyse!$E$28*Gesamtanalyse!K9)+(Stückanalyse!$D$28*Gesamtanalyse!K9*Gesamtanalyse!K9) -> 390.6049861 | O9: =(Stückanalyse!$E$30*Gesamtanalyse!K9)+(Stückanalyse!$D$30*Gesamtanalyse!K9*Gesamtanalyse!K9) -> 250.8315789 | P9: -278.3495845 | Q9: 329.566205 | R9: 1032.408864
D10: =Stückanalyse!G16 -> 20 | E10: =E9 -> 1144.072022 | K10: 4.789473684 | L10: =Stückanalyse!$F$3+(Stückanalyse!$E$3*Gesamtanalyse!K10) -> 612.5684211 | M10: =(Stückanalyse!$E$26*Gesamtanalyse!K10)+(Stückanalyse!$D$26*Gesamtanalyse!K10*Gesamtanalyse!K10) -> 380.7253463 | N10: =(Stückanalyse!$E$28*Gesamtanalyse!K10)+(Stückanalyse!$D$28*Gesamtanalyse!K10*Gesamtanalyse!K10) -> 447.8409972 | O10: =(Stückanalyse!$E$30*Gesamtanalyse!K10)+(Stückanalyse!$D$30*Gesamtanalyse!K10*Gesamtanalyse!K10) -> 289.5236842 | P10: -231.8430748 | Q10: 380.7253463 | R10: 1037.061496
K11: 5.473684211 | L11: =Stückanalyse!$F$3+(Stückanalyse!$E$3*Gesamtanalyse!K11) -> 617.2210526 | M11: =(Stückanalyse!$E$26*Gesamtanalyse!K11)+(Stückanalyse!$D$26*Gesamtanalyse!K11*Gesamtanalyse!K11) -> 430.8077562 | N11: =(Stückanalyse!$E$28*Gesamtanalyse!K11)+(Stückanalyse!$D$28*Gesamtanalyse!K11*Gesamtanalyse!K11) -> 502.8299169 | O11: =(Stückanalyse!$E$30*Gesamtanalyse!K11)+(Stückanalyse!$D$30*Gesamtanalyse!K11*Gesamtanalyse!K11) -> 327.3263158 | P11: -186.4132964 | Q11: 430.8077562 | R11: 1041.714127
C12: Gmax | D12: =MAX(P3:P103) -> 424.4930748 | K12: 6.157894737 | L12: =Stückanalyse!$F$3+(Stückanalyse!$E$3*Gesamtanalyse!K12) -> 621.8736842 | M12: =(Stückanalyse!$E$26*Gesamtanalyse!K12)+(Stückanalyse!$D$26*Gesamtanalyse!K12*Gesamtanalyse!K12) -> 479.8134349 | N12: =(Stückanalyse!$E$28*Gesamtanalyse!K12)+(Stückanalyse!$D$28*Gesamtanalyse!K12*Gesamtanalyse!K12) -> 555.5717452 | O12: =(Stückanalyse!$E$30*Gesamtanalyse!K12)+(Stückanalyse!$D$30*Gesamtanalyse!K12*Gesamtanalyse!K12) -> 364.2394737 | P12: -142.0602493 | Q12: 479.8134349 | R12: 1046.366759
K13: 6.842105263 | L13: =Stückanalyse!$F$3+(Stückanalyse!$E$3*Gesamtanalyse!K13) -> 626.5263158 | M13: =(Stückanalyse!$E$26*Gesamtanalyse!K13)+(Stückanalyse!$D$26*Gesamtanalyse!K13*Gesamtanalyse!K13) -> 527.7423823 | N13: =(Stückanalyse!$E$28*Gesamtanalyse!K13)+(Stückanalyse!$D$28*Gesamtanalyse!K13*Gesamtanalyse!K13) -> 606.066482 | O13: =(Stückanalyse!$E$30*Gesamtanalyse!K13)+(Stückanalyse!$D$30*Gesamtanalyse!K13*Gesamtanalyse!K13) -> 400.2631579 | P13: -98.78393352 | Q13: 527.7423823 | R13: 1051.019391
K14: 7.526315789 | L14: =Stückanalyse!$F$3+(Stückanalyse!$E$3*Gesamtanalyse!K14) -> 631.1789474 | M14: =(Stückanalyse!$E$26*Gesamtanalyse!K14)+(Stückanalyse!$D$26*Gesamtanalyse!K14*Gesamtanalyse!K14) -> 574.5945983 | N14: =(Stückanalyse!$E$28*Gesamtanalyse!K14)+(Stückanalyse!$D$28*Gesamtanalyse!K14*Gesamtanalyse!K14) -> 654.3141274 | O14: =(Stückanalyse!$E$30*Gesamtanalyse!K14)+(Stückanalyse!$D$30*Gesamtanalyse!K14*Gesamtanalyse!K14) -> 435.3973684 | P14: -56.58434903 | Q14: 574.5945983 | R14: 1055.672022
K15: 8.210526316 | L15: =Stückanalyse!$F$3+(Stückanalyse!$E$3*Gesamtanalyse!K15) -> 635.8315789 | M15: =(Stückanalyse!$E$26*Gesamtanalyse!K15)+(Stückanalyse!$D$26*Gesamtanalyse!K15*Gesamtanalyse!K15) -> 620.3700831 | N15: =(Stückanalyse!$E$28*Gesamtanalyse!K15)+(Stückanalyse!$D$28*Gesamtanalyse!K15*Gesamtanalyse!K15) -> 700.3146814 | O15: =(Stückanalyse!$E$30*Gesamtanalyse!K15)+(Stückanalyse!$D$30*Gesamtanalyse!K15*Gesamtanalyse!K15) -> 469.6421053 | P15: -15.46149584 | Q15: 620.3700831 | R15: 1060.324654
K16: 8.894736842 | L16: =Stückanalyse!$F$3+(Stückanalyse!$E$3*Gesamtanalyse!K16) -> 640.4842105 | M16: =(Stückanalyse!$E$26*Gesamtanalyse!K16)+(Stückanalyse!$D$26*Gesamtanalyse!K16*Gesamtanalyse!K16) -> 665.0688366 | N16: =(Stückanalyse!$E$28*Gesamtanalyse!K16)+(Stückanalyse!$D$28*Gesamtanalyse!K16*Gesamtanalyse!K16) -> 744.068144 | O16: =(Stückanalyse!$E$30*Gesamtanalyse!K16)+(Stückanalyse!$D$30*Gesamtanalyse!K16*Gesamtanalyse!K16) -> 502.9973684 | P16: 24.58462604 | Q16: 665.0688366 | R16: 1064.977285
K17: 9.578947368 | L17: =Stückanalyse!$F$3+(Stückanalyse!$E$3*Gesamtanalyse!K17) -> 645.1368421 | M17: =(Stückanalyse!$E$26*Gesamtanalyse!K17)+(Stückanalyse!$D$26*Gesamtanalyse!K17*Gesamtanalyse!K17) -> 708.6908587 | N17: =(Stückanalyse!$E$28*Gesamtanalyse!K17)+(Stückanalyse!$D$28*Gesamtanalyse!K17*Gesamtanalyse!K17) -> 785.5745152 | O17: =(Stückanalyse!$E$30*Gesamtanalyse!K17)+(Stückanalyse!$D$30*Gesamtanalyse!K17*Gesamtanalyse!K17) -> 535.4631579 | P17: 63.55401662 | Q17: 708.6908587 | R17: 1069.629917
K18: 10.26315789 | L18: =Stückanalyse!$F$3+(Stückanalyse!$E$3*Gesamtanalyse!K18) -> 649.7894737 | M18: =(Stückanalyse!$E$26*Gesamtanalyse!K18)+(Stückanalyse!$D$26*Gesamtanalyse!K18*Gesamtanalyse!K18) -> 751.2361496 | N18: =(Stückanalyse!$E$28*Gesamtanalyse!K18)+(Stückanalyse!$D$28*Gesamtanalyse!K18*Gesamtanalyse!K18) -> 824.833795 | O18: =(Stückanalyse!$E$30*Gesamtanalyse!K18)+(Stückanalyse!$D$30*Gesamtanalyse!K18*Gesamtanalyse!K18) -> 567.0394737 | P18: 101.4466759 | Q18: 751.2361496 | R18: 1074.282548
K19: 10.94736842 | L19: =Stückanalyse!$F$3+(Stückanalyse!$E$3*Gesamtanalyse!K19) -> 654.4421053 | M19: =(Stückanalyse!$E$26*Gesamtanalyse!K19)+(Stückanalyse!$D$26*Gesamtanalyse!K19*Gesamtanalyse!K19) -> 792.7047091 | N19: =(Stückanalyse!$E$28*Gesamtanalyse!K19)+(Stückanalyse!$D$28*Gesamtanalyse!K19*Gesamtanalyse!K19) -> 861.8459834 | O19: =(Stückanalyse!$E$30*Gesamtanalyse!K19)+(Stückanalyse!$D$30*Gesamtanalyse!K19*Gesamtanalyse!K19) -> 597.7263158 | P19: 138.2626039 | Q19: 792.7047091 | R19: 1078.93518
K20: 11.63157895 | L20: =Stückanalyse!$F$3+(Stückanalyse!$E$3*Gesamtanalyse!K20) -> 659.0947368 | M20: =(Stückanalyse!$E$26*Gesamtanalyse!K20)+(Stückanalyse!$D$26*Gesamtanalyse!K20*Gesamtanalyse!K20) -> 833.0965374 | N20: =(Stückanalyse!$E$28*Gesamtanalyse!K20)+(Stückanalyse!$D$28*Gesamtanalyse!K20*Gesamtanalyse!K20) -> 896.6110803 | O20: =(Stückanalyse!$E$30*Gesamtanalyse!K20)+(Stückanalyse!$D$30*Gesamtanalyse!K20*Gesamtanalyse!K20) -> 627.5236842 | P20: 174.0018006 | Q20: 833.0965374 | R20: 1083.587812
K21: 12.31578947 | L21: =Stückanalyse!$F$3+(Stückanalyse!$E$3*Gesamtanalyse!K21) -> 663.7473684 | M21: =(Stückanalyse!$E$26*Gesamtanalyse!K21)+(Stückanalyse!$D$26*Gesamtanalyse!K21*Gesamtanalyse!K21) -> 872.4116343 | N21: =(Stückanalyse!$E$28*Gesamtanalyse!K21)+(Stückanalyse!$D$28*Gesamtanalyse!K21*Gesamtanalyse!K21) -> 929.1290859 | O21: =(Stückanalyse!$E$30*Gesamtanalyse!K21)+(Stückanalyse!$D$30*Gesamtanalyse!K21*Gesamtanalyse!K21) -> 656.4315789 | P21: 208.6642659 | Q21: 872.4116343 | R21: 1088.240443
K22: 13 | L22: =Stückanalyse!$F$3+(Stückanalyse!$E$3*Gesamtanalyse!K22) -> 668.4 | M22: =(Stückanalyse!$E$26*Gesamtanalyse!K22)+(Stückanalyse!$D$26*Gesamtanalyse!K22*Gesamtanalyse!K22) -> 910.65 | N22: =(Stückanalyse!$E$28*Gesamtanalyse!K22)+(Stückanalyse!$D$28*Gesamtanalyse!K22*Gesamtanalyse!K22) -> 959.4 | O22: =(Stückanalyse!$E$30*Gesamtanalyse!K22)+(Stückanalyse!$D$30*Gesamtanalyse!K22*Gesamtanalyse!K22) -> 684.45 | P22: 242.25 | Q22: 910.65 | R22: 1092.893075
K23: 13.68421053 | L23: =Stückanalyse!$F$3+(Stückanalyse!$E$3*Gesamtanalyse!K23) -> 673.0526316 | M23: =(Stückanalyse!$E$26*Gesamtanalyse!K23)+(Stückanalyse!$D$26*Gesamtanalyse!K23*Gesamtanalyse!K23) -> 947.8116343 | N23: =(Stückanalyse!$E$28*Gesamtanalyse!K23)+(Stückanalyse!$D$28*Gesamtanalyse!K23*Gesamtanalyse!K23) -> 987.4238227 | O23: =(Stückanalyse!$E$30*Gesamtanalyse!K23)+(Stückanalyse!$D$30*Gesamtanalyse!K23*Gesamtanalyse!K23) -> 711.5789474 | P23: 274.7590028 | Q23: 947.8116343 | R23: 1097.545706
K24: 14.36842105 | L24: =Stückanalyse!$F$3+(Stückanalyse!$E$3*Gesamtanalyse!K24) -> 677.7052632 | M24: =(Stückanalyse!$E$26*Gesamtanalyse!K24)+(Stückanalyse!$D$26*Gesamtanalyse!K24*Gesamtanalyse!K24) -> 983.8965374 | N24: =(Stückanalyse!$E$28*Gesamtanalyse!K24)+(Stückanalyse!$D$28*Gesamtanalyse!K24*Gesamtanalyse!K24) -> 1013.200554 | O24: =(Stückanalyse!$E$30*Gesamtanalyse!K24)+(Stückanalyse!$D$30*Gesamtanalyse!K24*Gesamtanalyse!K24) -> 737.8184211 | P24: 306.1912742 | Q24: 983.8965374 | R24: 1102.198338
K25: 15.05263158 | L25: =Stückanalyse!$F$3+(Stückanalyse!$E$3*Gesamtanalyse!K25) -> 682.3578947 | M25: =(Stückanalyse!$E$26*Gesamtanalyse!K25)+(Stückanalyse!$D$26*Gesamtanalyse!K25*Gesamtanalyse!K25) -> 1018.904709 | N25: =(Stückanalyse!$E$28*Gesamtanalyse!K25)+(Stückanalyse!$D$28*Gesamtanalyse!K25*Gesamtanalyse!K25) -> 1036.730194 | O25: =(Stückanalyse!$E$30*Gesamtanalyse!K25)+(Stückanalyse!$D$30*Gesamtanalyse!K25*Gesamtanalyse!K25) -> 763.1684211 | P25: 336.5468144 | Q25: 1018.904709 | R25: 1106.85097
K26: 15.73684211 | L26: =Stückanalyse!$F$3+(Stückanalyse!$E$3*Gesamtanalyse!K26) -> 687.0105263 | M26: =(Stückanalyse!$E$26*Gesamtanalyse!K26)+(Stückanalyse!$D$26*Gesamtanalyse!K26*Gesamtanalyse!K26) -> 1052.83615 | N26: =(Stückanalyse!$E$28*Gesamtanalyse!K26)+(Stückanalyse!$D$28*Gesamtanalyse!K26*Gesamtanalyse!K26) -> 1058.012742 | O26: =(Stückanalyse!$E$30*Gesamtanalyse!K26)+(Stückanalyse!$D$30*Gesamtanalyse!K26*Gesamtanalyse!K26) -> 787.6289474 | P26: 365.8256233 | Q26: 1052.83615 | R26: 1111.503601
K27: 16.42105263 | L27: =Stückanalyse!$F$3+(Stückanalyse!$E$3*Gesamtanalyse!K27) -> 691.6631579 | M27: =(Stückanalyse!$E$26*Gesamtanalyse!K27)+(Stückanalyse!$D$26*Gesamtanalyse!K27*Gesamtanalyse!K27) -> 1085.690859 | N27: =(Stückanalyse!$E$28*Gesamtanalyse!K27)+(Stückanalyse!$D$28*Gesamtanalyse!K27*Gesamtanalyse!K27) -> 1077.048199 | O27: =(Stückanalyse!$E$30*Gesamtanalyse!K27)+(Stückanalyse!$D$30*Gesamtanalyse!K27*Gesamtanalyse!K27) -> 811.2 | P27: 385.3850416 | Q27: 1077.048199 | R27: 1116.156233
K28: 17.10526316 | L28: =Stückanalyse!$F$3+(Stückanalyse!$E$3*Gesamtanalyse!K28) -> 696.3157895 | M28: =(Stückanalyse!$E$26*Gesamtanalyse!K28)+(Stückanalyse!$D$26*Gesamtanalyse!K28*Gesamtanalyse!K28) -> 1117.468837 | N28: =(Stückanalyse!$E$28*Gesamtanalyse!K28)+(Stückanalyse!$D$28*Gesamtanalyse!K28*Gesamtanalyse!K28) -> 1093.836565 | O28: =(Stückanalyse!$E$30*Gesamtanalyse!K28)+(Stückanalyse!$D$30*Gesamtanalyse!K28*Gesamtanalyse!K28) -> 833.8815789 | P28: 397.5207756 | Q28: 1093.836565 | R28: 1120.808864
K29: 17.78947368 | L29: =Stückanalyse!$F$3+(Stückanalyse!$E$3*Gesamtanalyse!K29) -> 700.9684211 | M29: =(Stückanalyse!$E$26*Gesamtanalyse!K29)+(Stückanalyse!$D$26*Gesamtanalyse!K29*Gesamtanalyse!K29) -> 1148.170083 | N29: =(Stückanalyse!$E$28*Gesamtanalyse!K29)+(Stückanalyse!$D$28*Gesamtanalyse!K29*Gesamtanalyse!K29) -> 1108.377839 | O29: =(Stückanalyse!$E$30*Gesamtanalyse!K29)+(Stückanalyse!$D$30*Gesamtanalyse!K29*Gesamtanalyse!K29) -> 855.6736842 | P29: 407.4094183 | Q29: 1108.377839 | R29: 1125.461496
K30: 18.47368421 | L30: =Stückanalyse!$F$3+(Stückanalyse!$E$3*Gesamtanalyse!K30) -> 705.6210526 | M30: =(Stückanalyse!$E$26*Gesamtanalyse!K30)+(Stückanalyse!$D$26*Gesamtanalyse!K30*Gesamtanalyse!K30) -> 1177.794598 | N30: =(Stückanalyse!$E$28*Gesamtanalyse!K30)+(Stückanalyse!$D$28*Gesamtanalyse!K30*Gesamtanalyse!K30) -> 1120.672022 | O30: =(Stückanalyse!$E$30*Gesamtanalyse!K30)+(Stückanalyse!$D$30*Gesamtanalyse!K30*Gesamtanalyse!K30) -> 876.5763158 | P30: 415.0509695 | Q30: 1120.672022 | R30: 1130.114127
K31: 19.15789474 | L31: =Stückanalyse!$F$3+(Stückanalyse!$E$3*Gesamtanalyse!K31) -> 710.2736842 | M31: =(Stückanalyse!$E$26*Gesamtanalyse!K31)+(Stückanalyse!$D$26*Gesamtanalyse!K31*Gesamtanalyse!K31) -> 1206.342382 | N31: =(Stückanalyse!$E$28*Gesamtanalyse!K31)+(Stückanalyse!$D$28*Gesamtanalyse!K31*Gesamtanalyse!K31) -> 1130.719114 | O31: =(Stückanalyse!$E$30*Gesamtanalyse!K31)+(Stückanalyse!$D$30*Gesamtanalyse!K31*Gesamtanalyse!K31) -> 896.5894737 | P31: 420.4454294 | Q31: 1130.719114 | R31: 1134.766759
K32: 19.84210526 | L32: =Stückanalyse!$F$3+(Stückanalyse!$E$3*Gesamtanalyse!K32) -> 714.9263158 | M32: =(Stückanalyse!$E$26*Gesamtanalyse!K32)+(Stückanalyse!$D$26*Gesamtanalyse!K32*Gesamtanalyse!K32) -> 1233.813435 | N32: =(Stückanalyse!$E$28*Gesamtanalyse!K32)+(Stückanalyse!$D$28*Gesamtanalyse!K32*Gesamtanalyse!K32) -> 1138.519114 | O32: =(Stückanalyse!$E$30*Gesamtanalyse!K32)+(Stückanalyse!$D$30*Gesamtanalyse!K32*Gesamtanalyse!K32) -> 915.7131579 | P32: 423.5927978 | Q32: 1138.519114 | R32: 1139.419391
K33: 20.52631579 | L33: =Stückanalyse!$F$3+(Stückanalyse!$E$3*Gesamtanalyse!K33) -> 719.5789474 | M33: =(Stückanalyse!$E$26*Gesamtanalyse!K33)+(Stückanalyse!$D$26*Gesamtanalyse!K33*Gesamtanalyse!K33) -> 1260.207756 | N33: =(Stückanalyse!$E$28*Gesamtanalyse!K33)+(Stückanalyse!$D$28*Gesamtanalyse!K33*Gesamtanalyse!K33) -> 1144.072022 | O33: =(Stückanalyse!$E$30*Gesamtanalyse!K33)+(Stückanalyse!$D$30*Gesamtanalyse!K33*Gesamtanalyse!K33) -> 933.9473684 | P33: 424.4930748 | Q33: 1144.072022 | R33: 1144.072022
K34: 21.21052632 | L34: =Stückanalyse!$F$3+(Stückanalyse!$E$3*Gesamtanalyse!K34) -> 724.2315789 | M34: =(Stückanalyse!$E$26*Gesamtanalyse!K34)+(Stückanalyse!$D$26*Gesamtanalyse!K34*Gesamtanalyse!K34) -> 1285.525346 | N34: =(Stückanalyse!$E$28*Gesamtanalyse!K34)+(Stückanalyse!$D$28*Gesamtanalyse!K34*Gesamtanalyse!K34) -> 1147.377839 | O34: =(Stückanalyse!$E$30*Gesamtanalyse!K34)+(Stückanalyse!$D$30*Gesamtanalyse!K34*Gesamtanalyse!K34) -> 951.2921053 | P34: 423.1462604 | Q34: 1147.377839 | R34: 1148.724654
K35: 21.89473684 | L35: =Stückanalyse!$F$3+(Stückanalyse!$E$3*Gesamtanalyse!K35) -> 728.8842105 | M35: =(Stückanalyse!$E$26*Gesamtanalyse!K35)+(Stückanalyse!$D$26*Gesamtanalyse!K35*Gesamtanalyse!K35) -> 1309.766205 | N35: =(Stückanalyse!$E$28*Gesamtanalyse!K35)+(Stückanalyse!$D$28*Gesamtanalyse!K35*Gesamtanalyse!K35) -> 1148.436565 | O35: =(Stückanalyse!$E$30*Gesamtanalyse!K35)+(Stückanalyse!$D$30*Gesamtanalyse!K35*Gesamtanalyse!K35) -> 967.7473684 | P35: 419.5523546 | Q35: =IF(AND($M35<$N35,$M35>$O35),M35,IF(AND($N35>$O35,$M35>$O35),N35,O35)) -> 1148.436565 | R35: =L35+$D$12 -> 1153.377285
K36: 22.57894737 | L36: =Stückanalyse!$F$3+(Stückanalyse!$E$3*Gesamtanalyse!K36) -> 733.5368421 | M36: =(Stückanalyse!$E$26*Gesamtanalyse!K36)+(Stückanalyse!$D$26*Gesamtanalyse!K36*Gesamtanalyse!K36) -> 1332.930332 | N36: =(Stückanalyse!$E$28*Gesamtanalyse!K36)+(Stückanalyse!$D$28*Gesamtanalyse!K36*Gesamtanalyse!K36) -> 1147.248199 | O36: =(Stückanalyse!$E$30*Gesamtanalyse!K36)+(Stückanalyse!$D$30*Gesamtanalyse!K36*Gesamtanalyse!K36) -> 983.3131579 | P36: 413.7113573 | Q36: 1147.248199 | R36: 1158.029917
K37: 23.26315789 | L37: =Stückanalyse!$F$3+(Stückanalyse!$E$3*Gesamtanalyse!K37) -> 738.1894737 | M37: =(Stückanalyse!$E$26*Gesamtanalyse!K37)+(Stückanalyse!$D$26*Gesamtanalyse!K37*Gesamtanalyse!K37) -> 1355.017729 | N37: =(Stückanalyse!$E$28*Gesamtanalyse!K37)+(Stückanalyse!$D$28*Gesamtanalyse!K37*Gesamtanalyse!K37) -> 1143.812742 | O37: =(Stückanalyse!$E$30*Gesamtanalyse!K37)+(Stückanalyse!$D$30*Gesamtanalyse!K37*Gesamtanalyse!K37) -> 997.9894737 | P37: 405.6232687 | Q37: 1143.812742 | R37: 1162.682548
K38: 23.94736842 | L38: =Stückanalyse!$F$3+(Stückanalyse!$E$3*Gesamtanalyse!K38) -> 742.8421053 | M38: =(Stückanalyse!$E$26*Gesamtanalyse!K38)+(Stückanalyse!$D$26*Gesamtanalyse!K38*Gesamtanalyse!K38) -> 1376.028393 | N38: =(Stückanalyse!$E$28*Gesamtanalyse!K38)+(Stückanalyse!$D$28*Gesamtanalyse!K38*Gesamtanalyse!K38) -> 1138.130194 | O38: =(Stückanalyse!$E$30*Gesamtanalyse!K38)+(Stückanalyse!$D$30*Gesamtanalyse!K38*Gesamtanalyse!K38) -> 1011.776316 | P38: 395.2880886 | Q38: 1138.130194 | R38: 1167.33518
K39: 24.63157895 | L39: =Stückanalyse!$F$3+(Stückanalyse!$E$3*Gesamtanalyse!K39) -> 747.4947368 | M39: =(Stückanalyse!$E$26*Gesamtanalyse!K39)+(Stückanalyse!$D$26*Gesamtanalyse!K39*Gesamtanalyse!K39) -> 1395.962327 | N39: =(Stückanalyse!$E$28*Gesamtanalyse!K39)+(Stückanalyse!$D$28*Gesamtanalyse!K39*Gesamtanalyse!K39) -> 1130.200554 | O39: =(Stückanalyse!$E$30*Gesamtanalyse!K39)+(Stückanalyse!$D$30*Gesamtanalyse!K39*Gesamtanalyse!K39) -> 1024.673684 | P39: 382.7058172 | Q39: 1130.200554 | R39: 1171.987812
K40: 25.31578947 | L40: =Stückanalyse!$F$3+(Stückanalyse!$E$3*Gesamtanalyse!K40) -> 752.1473684 | M40: =(Stückanalyse!$E$26*Gesamtanalyse!K40)+(Stückanalyse!$D$26*Gesamtanalyse!K40*Gesamtanalyse!K40) -> 1414.819529 | N40: =(Stückanalyse!$E$28*Gesamtanalyse!K40)+(Stückanalyse!$D$28*Gesamtanalyse!K40*Gesamtanalyse!K40) -> 1120.023823 | O40: =(Stückanalyse!$E$30*Gesamtanalyse!K40)+(Stückanalyse!$D$30*Gesamtanalyse!K40*Gesamtanalyse!K40) -> 1036.681579 | P40: 367.8764543 | Q40: 1120.023823 | R40: 1176.640443
K41: 26 | L41: =Stückanalyse!$F$3+(Stückanalyse!$E$3*Gesamtanalyse!K41) -> 756.8 | M41: =(Stückanalyse!$E$26*Gesamtanalyse!K41)+(Stückanalyse!$D$26*Gesamtanalyse!K41*Gesamtanalyse!K41) -> 1432.6 | N41: =(Stückanalyse!$E$28*Gesamtanalyse!K41)+(Stückanalyse!$D$28*Gesamtanalyse!K41*Gesamtanalyse!K41) -> 1107.6 | O41: =(Stückanalyse!$E$30*Gesamtanalyse!K41)+(Stückanalyse!$D$30*Gesamtanalyse!K41*Gesamtanalyse!K41) -> 1047.8 | P41: 350.8 | Q41: 1107.6 | R41: 1181.293075
K42: 26.68421053 | L42: =Stückanalyse!$F$3+(Stückanalyse!$E$3*Gesamtanalyse!K42) -> 761.4526316 | M42: =(Stückanalyse!$E$26*Gesamtanalyse!K42)+(Stückanalyse!$D$26*Gesamtanalyse!K42*Gesamtanalyse!K42) -> 1449.30374 | N42: =(Stückanalyse!$E$28*Gesamtanalyse!K42)+(Stückanalyse!$D$28*Gesamtanalyse!K42*Gesamtanalyse!K42) -> 1092.929086 | O42: =(Stückanalyse!$E$30*Gesamtanalyse!K42)+(Stückanalyse!$D$30*Gesamtanalyse!K42*Gesamtanalyse!K42) -> 1058.028947 | P42: 331.4764543 | Q42: 1092.929086 | R42: 1185.945706
K43: 27.36842105 | L43: =Stückanalyse!$F$3+(Stückanalyse!$E$3*Gesamtanalyse!K43) -> 766.1052632 | M43: =(Stückanalyse!$E$26*Gesamtanalyse!K43)+(Stückanalyse!$D$26*Gesamtanalyse!K43*Gesamtanalyse!K43) -> 1464.930748 | N43: =(Stückanalyse!$E$28*Gesamtanalyse!K43)+(Stückanalyse!$D$28*Gesamtanalyse!K43*Gesamtanalyse!K43) -> 1076.01108 | O43: =(Stückanalyse!$E$30*Gesamtanalyse!K43)+(Stückanalyse!$D$30*Gesamtanalyse!K43*Gesamtanalyse!K43) -> 1067.368421 | P43: 309.9058172 | Q43: 1076.01108 | R43: 1190.598338
K44: 28.05263158 | L44: =Stückanalyse!$F$3+(Stückanalyse!$E$3*Gesamtanalyse!K44) -> 770.7578947 | M44: =(Stückanalyse!$E$26*Gesamtanalyse!K44)+(Stückanalyse!$D$26*Gesamtanalyse!K44*Gesamtanalyse!K44) -> 1479.481025 | N44: =(Stückanalyse!$E$28*Gesamtanalyse!K44)+(Stückanalyse!$D$28*Gesamtanalyse!K44*Gesamtanalyse!K44) -> 1056.845983 | O44: =(Stückanalyse!$E$30*Gesamtanalyse!K44)+(Stückanalyse!$D$30*Gesamtanalyse!K44*Gesamtanalyse!K44) -> 1075.818421 | P44: 305.0605263 | Q44: 1075.818421 | R44: 1195.25097
K45: 28.73684211 | L45: =Stückanalyse!$F$3+(Stückanalyse!$E$3*Gesamtanalyse!K45) -> 775.4105263 | M45: =(Stückanalyse!$E$26*Gesamtanalyse!K45)+(Stückanalyse!$D$26*Gesamtanalyse!K45*Gesamtanalyse!K45) -> 1492.954571 | N45: =(Stückanalyse!$E$28*Gesamtanalyse!K45)+(Stückanalyse!$D$28*Gesamtanalyse!K45*Gesamtanalyse!K45) -> 1035.433795 | O45: =(Stückanalyse!$E$30*Gesamtanalyse!K45)+(Stückanalyse!$D$30*Gesamtanalyse!K45*Gesamtanalyse!K45) -> 1083.378947 | P45: 307.9684211 | Q45: 1083.378947 | R45: 1199.903601
K46: 29.42105263 | L46: =Stückanalyse!$F$3+(Stückanalyse!$E$3*Gesamtanalyse!K46) -> 780.0631579 | M46: =(Stückanalyse!$E$26*Gesamtanalyse!K46)+(Stückanalyse!$D$26*Gesamtanalyse!K46*Gesamtanalyse!K46) -> 1505.351385 | N46: =(Stückanalyse!$E$28*Gesamtanalyse!K46)+(Stückanalyse!$D$28*Gesamtanalyse!K46*Gesamtanalyse!K46) -> 1011.774515 | O46: =(Stückanalyse!$E$30*Gesamtanalyse!K46)+(Stückanalyse!$D$30*Gesamtanalyse!K46*Gesamtanalyse!K46) -> 1090.05 | P46: 309.9868421 | Q46: 1090.05 | R46: 1204.556233
K47: 30.10526316 | L47: =Stückanalyse!$F$3+(Stückanalyse!$E$3*Gesamtanalyse!K47) -> 784.7157895 | M47: =(Stückanalyse!$E$26*Gesamtanalyse!K47)+(Stückanalyse!$D$26*Gesamtanalyse!K47*Gesamtanalyse!K47) -> 1516.671468 | N47: =(Stückanalyse!$E$28*Gesamtanalyse!K47)+(Stückanalyse!$D$28*Gesamtanalyse!K47*Gesamtanalyse!K47) -> 985.868144 | O47: =(Stückanalyse!$E$30*Gesamtanalyse!K47)+(Stückanalyse!$D$30*Gesamtanalyse!K47*Gesamtanalyse!K47) -> 1095.831579 | P47: 311.1157895 | Q47: 1095.831579 | R47: 1209.208864
K48: 30.78947368 | L48: =Stückanalyse!$F$3+(Stückanalyse!$E$3*Gesamtanalyse!K48) -> 789.3684211 | M48: =(Stückanalyse!$E$26*Gesamtanalyse!K48)+(Stückanalyse!$D$26*Gesamtanalyse!K48*Gesamtanalyse!K48) -> 1526.91482 | N48: =(Stückanalyse!$E$28*Gesamtanalyse!K48)+(Stückanalyse!$D$28*Gesamtanalyse!K48*Gesamtanalyse!K48) -> 957.7146814 | O48: =(Stückanalyse!$E$30*Gesamtanalyse!K48)+(Stückanalyse!$D$30*Gesamtanalyse!K48*Gesamtanalyse!K48) -> 1100.723684 | P48: 311.3552632 | Q48: 1100.723684 | R48: 1213.861496
K49: 31.47368421 | L49: =Stückanalyse!$F$3+(Stückanalyse!$E$3*Gesamtanalyse!K49) -> 794.0210526 | M49: =(Stückanalyse!$E$26*Gesamtanalyse!K49)+(Stückanalyse!$D$26*Gesamtanalyse!K49*Gesamtanalyse!K49) -> 1536.08144 | N49: =(Stückanalyse!$E$28*Gesamtanalyse!K49)+(Stückanalyse!$D$28*Gesamtanalyse!K49*Gesamtanalyse!K49) -> 927.3141274 | O49: =(Stückanalyse!$E$30*Gesamtanalyse!K49)+(Stückanalyse!$D$30*Gesamtanalyse!K49*Gesamtanalyse!K49) -> 1104.726316 | P49: 310.7052632 | Q49: 1104.726316 | R49: 1218.514127
K50: 32.15789474 | L50: =Stückanalyse!$F$3+(Stückanalyse!$E$3*Gesamtanalyse!K50) -> 798.6736842 | M50: =(Stückanalyse!$E$26*Gesamtanalyse!K50)+(Stückanalyse!$D$26*Gesamtanalyse!K50*Gesamtanalyse!K50) -> 1544.17133 | N50: =(Stückanalyse!$E$28*Gesamtanalyse!K50)+(Stückanalyse!$D$28*Gesamtanalyse!K50*Gesamtanalyse!K50) -> 894.666482 | O50: =(Stückanalyse!$E$30*Gesamtanalyse!K50)+(Stückanalyse!$D$30*Gesamtanalyse!K50*Gesamtanalyse!K50) -> 1107.839474 | P50: 309.1657895 | Q50: 1107.839474 | R50: 1223.166759
K51: 32.84210526 | L51: =Stückanalyse!$F$3+(Stückanalyse!$E$3*Gesamtanalyse!K51) -> 803.3263158 | M51: =(Stückanalyse!$E$26*Gesamtanalyse!K51)+(Stückanalyse!$D$26*Gesamtanalyse!K51*Gesamtanalyse!K51) -> 1551.184488 | N51: =(Stückanalyse!$E$28*Gesamtanalyse!K51)+(Stückanalyse!$D$28*Gesamtanalyse!K51*Gesamtanalyse!K51) -> 859.7717452 | O51: =(Stückanalyse!$E$30*Gesamtanalyse!K51)+(Stückanalyse!$D$30*Gesamtanalyse!K51*Gesamtanalyse!K51) -> 1110.063158 | P51: 306.7368421 | Q51: 1110.063158 | R51: 1227.819391
K52: 33.52631579 | L52: =Stückanalyse!$F$3+(Stückanalyse!$E$3*Gesamtanalyse!K52) -> 807.9789474 | M52: =(Stückanalyse!$E$26*Gesamtanalyse!K52)+(Stückanalyse!$D$26*Gesamtanalyse!K52*Gesamtanalyse!K52) -> 1557.120914 | N52: =(Stückanalyse!$E$28*Gesamtanalyse!K52)+(Stückanalyse!$D$28*Gesamtanalyse!K52*Gesamtanalyse!K52) -> 822.6299169 | O52: =(Stückanalyse!$E$30*Gesamtanalyse!K52)+(Stückanalyse!$D$30*Gesamtanalyse!K52*Gesamtanalyse!K52) -> 1111.397368 | P52: 303.4184211 | Q52: 1111.397368 | R52: 1232.472022
K53: 34.21052632 | L53: =Stückanalyse!$F$3+(Stückanalyse!$E$3*Gesamtanalyse!K53) -> 812.6315789 | M53: =(Stückanalyse!$E$26*Gesamtanalyse!K53)+(Stückanalyse!$D$26*Gesamtanalyse!K53*Gesamtanalyse!K53) -> 1561.980609 | N53: =(Stückanalyse!$E$28*Gesamtanalyse!K53)+(Stückanalyse!$D$28*Gesamtanalyse!K53*Gesamtanalyse!K53) -> 783.2409972 | O53: =(Stückanalyse!$E$30*Gesamtanalyse!K53)+(Stückanalyse!$D$30*Gesamtanalyse!K53*Gesamtanalyse!K53) -> 1111.842105 | P53: 299.2105263 | Q53: 1111.842105 | R53: 1237.124654
K54: 34.89473684 | L54: =Stückanalyse!$F$3+(Stückanalyse!$E$3*Gesamtanalyse!K54) -> 817.2842105 | M54: =(Stückanalyse!$E$26*Gesamtanalyse!K54)+(Stückanalyse!$D$26*Gesamtanalyse!K54*Gesamtanalyse!K54) -> 1565.763573 | N54: =(Stückanalyse!$E$28*Gesamtanalyse!K54)+(Stückanalyse!$D$28*Gesamtanalyse!K54*Gesamtanalyse!K54) -> 741.6049861 | O54: =(Stückanalyse!$E$30*Gesamtanalyse!K54)+(Stückanalyse!$D$30*Gesamtanalyse!K54*Gesamtanalyse!K54) -> 1111.397368 | P54: 294.1131579 | Q54: 1111.397368 | R54: 1241.777285
K55: 35.57894737 | L55: =Stückanalyse!$F$3+(Stückanalyse!$E$3*Gesamtanalyse!K55) -> 821.9368421 | M55: =(Stückanalyse!$E$26*Gesamtanalyse!K55)+(Stückanalyse!$D$26*Gesamtanalyse!K55*Gesamtanalyse!K55) -> 1568.469806 | N55: =(Stückanalyse!$E$28*Gesamtanalyse!K55)+(Stückanalyse!$D$28*Gesamtanalyse!K55*Gesamtanalyse!K55) -> 697.7218837 | O55: =(Stückanalyse!$E$30*Gesamtanalyse!K55)+(Stückanalyse!$D$30*Gesamtanalyse!K55*Gesamtanalyse!K55) -> 1110.063158 | P55: 288.1263158 | Q55: 1110.063158 | R55: 1246.429917
K56: 36.26315789 | L56: =Stückanalyse!$F$3+(Stückanalyse!$E$3*Gesamtanalyse!K56) -> 826.5894737 | M56: =(Stückanalyse!$E$26*Gesamtanalyse!K56)+(Stückanalyse!$D$26*Gesamtanalyse!K56*Gesamtanalyse!K56) -> 1570.099307 | N56: =(Stückanalyse!$E$28*Gesamtanalyse!K56)+(Stückanalyse!$D$28*Gesamtanalyse!K56*Gesamtanalyse!K56) -> 651.5916898 | O56: =(Stückanalyse!$E$30*Gesamtanalyse!K56)+(Stückanalyse!$D$30*Gesamtanalyse!K56*Gesamtanalyse!K56) -> 1107.839474 | P56: 281.25 | Q56: 1107.839474 | R56: 1251.082548
K57: 36.94736842 | L57: =Stückanalyse!$F$3+(Stückanalyse!$E$3*Gesamtanalyse!K57) -> 831.2421053 | M57: =(Stückanalyse!$E$26*Gesamtanalyse!K57)+(Stückanalyse!$D$26*Gesamtanalyse!K57*Gesamtanalyse!K57) -> 1570.652078 | N57: =(Stückanalyse!$E$28*Gesamtanalyse!K57)+(Stückanalyse!$D$28*Gesamtanalyse!K57*Gesamtanalyse!K57) -> 603.2144044 | O57: =(Stückanalyse!$E$30*Gesamtanalyse!K57)+(Stückanalyse!$D$30*Gesamtanalyse!K57*Gesamtanalyse!K57) -> 1104.726316 | P57: 273.4842105 | Q57: 1104.726316 | R57: 1255.73518
K58: 37.63157895 | L58: =Stückanalyse!$F$3+(Stückanalyse!$E$3*Gesamtanalyse!K58) -> 835.8947368 | M58: =(Stückanalyse!$E$26*Gesamtanalyse!K58)+(Stückanalyse!$D$26*Gesamtanalyse!K58*Gesamtanalyse!K58) -> 1570.128116 | N58: =(Stückanalyse!$E$28*Gesamtanalyse!K58)+(Stückanalyse!$D$28*Gesamtanalyse!K58*Gesamtanalyse!K58) -> 552.5900277 | O58: =(Stückanalyse!$E$30*Gesamtanalyse!K58)+(Stückanalyse!$D$30*Gesamtanalyse!K58*Gesamtanalyse!K58) -> 1100.723684 | P58: 264.8289474 | Q58: 1100.723684 | R58: 1260.387812
K59: 38.31578947 | L59: =Stückanalyse!$F$3+(Stückanalyse!$E$3*Gesamtanalyse!K59) -> 840.5473684 | M59: =(Stückanalyse!$E$26*Gesamtanalyse!K59)+(Stückanalyse!$D$26*Gesamtanalyse!K59*Gesamtanalyse!K59) -> 1568.527424 | N59: =(Stückanalyse!$E$28*Gesamtanalyse!K59)+(Stückanalyse!$D$28*Gesamtanalyse!K59*Gesamtanalyse!K59) -> 499.7185596 | O59: =(Stückanalyse!$E$30*Gesamtanalyse!K59)+(Stückanalyse!$D$30*Gesamtanalyse!K59*Gesamtanalyse!K59) -> 1095.831579 | P59: 255.2842105 | Q59: 1095.831579 | R59: 1265.040443
K60: 39 | L60: =Stückanalyse!$F$3+(Stückanalyse!$E$3*Gesamtanalyse!K60) -> 845.2 | M60: =(Stückanalyse!$E$26*Gesamtanalyse!K60)+(Stückanalyse!$D$26*Gesamtanalyse!K60*Gesamtanalyse!K60) -> 1565.85 | N60: =(Stückanalyse!$E$28*Gesamtanalyse!K60)+(Stückanalyse!$D$28*Gesamtanalyse!K60*Gesamtanalyse!K60) -> 444.6 | O60: =(Stückanalyse!$E$30*Gesamtanalyse!K60)+(Stückanalyse!$D$30*Gesamtanalyse!K60*Gesamtanalyse!K60) -> 1090.05 | P60: 244.85 | Q60: 1090.05 | R60: 1269.693075
K61: 39.68421053 | L61: =Stückanalyse!$F$3+(Stückanalyse!$E$3*Gesamtanalyse!K61) -> 849.8526316 | M61: =(Stückanalyse!$E$26*Gesamtanalyse!K61)+(Stückanalyse!$D$26*Gesamtanalyse!K61*Gesamtanalyse!K61) -> 1562.095845 | N61: =(Stückanalyse!$E$28*Gesamtanalyse!K61)+(Stückanalyse!$D$28*Gesamtanalyse!K61*Gesamtanalyse!K61) -> 387.234349 | O61: =(Stückanalyse!$E$30*Gesamtanalyse!K61)+(Stückanalyse!$D$30*Gesamtanalyse!K61*Gesamtanalyse!K61) -> 1083.378947 | P61: 233.5263158 | Q61: 1083.378947 | R61: 1274.345706
K62: 40.36842105 | L62: =Stückanalyse!$F$3+(Stückanalyse!$E$3*Gesamtanalyse!K62) -> 854.5052632 | M62: =(Stückanalyse!$E$26*Gesamtanalyse!K62)+(Stückanalyse!$D$26*Gesamtanalyse!K62*Gesamtanalyse!K62) -> 1557.264958 | N62: =(Stückanalyse!$E$28*Gesamtanalyse!K62)+(Stückanalyse!$D$28*Gesamtanalyse!K62*Gesamtanalyse!K62) -> 327.6216066 | O62: =(Stückanalyse!$E$30*Gesamtanalyse!K62)+(Stückanalyse!$D$30*Gesamtanalyse!K62*Gesamtanalyse!K62) -> 1075.818421 | P62: 221.3131579 | Q62: 1075.818421 | R62: 1278.998338
K63: 41.05263158 | L63: =Stückanalyse!$F$3+(Stückanalyse!$E$3*Gesamtanalyse!K63) -> 859.1578947 | M63: =(Stückanalyse!$E$26*Gesamtanalyse!K63)+(Stückanalyse!$D$26*Gesamtanalyse!K63*Gesamtanalyse!K63) -> 1551.357341 | N63: =(Stückanalyse!$E$28*Gesamtanalyse!K63)+(Stückanalyse!$D$28*Gesamtanalyse!K63*Gesamtanalyse!K63) -> 265.7617729 | O63: =(Stückanalyse!$E$30*Gesamtanalyse!K63)+(Stückanalyse!$D$30*Gesamtanalyse!K63*Gesamtanalyse!K63) -> 1067.368421 | P63: 208.2105263 | Q63: 1067.368421 | R63: 1283.65097
K64: 41.73684211 | L64: =Stückanalyse!$F$3+(Stückanalyse!$E$3*Gesamtanalyse!K64) -> 863.8105263 | M64: =(Stückanalyse!$E$26*Gesamtanalyse!K64)+(Stückanalyse!$D$26*Gesamtanalyse!K64*Gesamtanalyse!K64) -> 1544.372992 | N64: =(Stückanalyse!$E$28*Gesamtanalyse!K64)+(Stückanalyse!$D$28*Gesamtanalyse!K64*Gesamtanalyse!K64) -> 201.6548476 | O64: =(Stückanalyse!$E$30*Gesamtanalyse!K64)+(Stückanalyse!$D$30*Gesamtanalyse!K64*Gesamtanalyse!K64) -> 1058.028947 | P64: 194.2184211 | Q64: 1058.028947 | R64: 1288.303601
K65: 42.42105263 | L65: =Stückanalyse!$F$3+(Stückanalyse!$E$3*Gesamtanalyse!K65) -> 868.4631579 | M65: =(Stückanalyse!$E$26*Gesamtanalyse!K65)+(Stückanalyse!$D$26*Gesamtanalyse!K65*Gesamtanalyse!K65) -> 1536.311911 | N65: =(Stückanalyse!$E$28*Gesamtanalyse!K65)+(Stückanalyse!$D$28*Gesamtanalyse!K65*Gesamtanalyse!K65) -> 135.300831 | O65: =(Stückanalyse!$E$30*Gesamtanalyse!K65)+(Stückanalyse!$D$30*Gesamtanalyse!K65*Gesamtanalyse!K65) -> 1047.8 | P65: 179.3368421 | Q65: 1047.8 | R65: 1292.956233
K66: 43.10526316 | L66: =Stückanalyse!$F$3+(Stückanalyse!$E$3*Gesamtanalyse!K66) -> 873.1157895 | M66: =(Stückanalyse!$E$26*Gesamtanalyse!K66)+(Stückanalyse!$D$26*Gesamtanalyse!K66*Gesamtanalyse!K66) -> 1527.1741 | N66: =(Stückanalyse!$E$28*Gesamtanalyse!K66)+(Stückanalyse!$D$28*Gesamtanalyse!K66*Gesamtanalyse!K66) -> 66.69972299 | O66: =(Stückanalyse!$E$30*Gesamtanalyse!K66)+(Stückanalyse!$D$30*Gesamtanalyse!K66*Gesamtanalyse!K66) -> 1036.681579 | P66: 163.5657895 | Q66: 1036.681579 | R66: 1297.608864
K67: 43.78947368 | L67: =Stückanalyse!$F$3+(Stückanalyse!$E$3*Gesamtanalyse!K67) -> 877.7684211 | M67: =(Stückanalyse!$E$26*Gesamtanalyse!K67)+(Stückanalyse!$D$26*Gesamtanalyse!K67*Gesamtanalyse!K67) -> 1516.959557 | N67: =(Stückanalyse!$E$28*Gesamtanalyse!K67)+(Stückanalyse!$D$28*Gesamtanalyse!K67*Gesamtanalyse!K67) -> -4.148476454 | O67: =(Stückanalyse!$E$30*Gesamtanalyse!K67)+(Stückanalyse!$D$30*Gesamtanalyse!K67*Gesamtanalyse!K67) -> 1024.673684 | P67: 146.9052632 | Q67: 1024.673684 | R67: 1302.261496
K68: 44.47368421 | L68: =Stückanalyse!$F$3+(Stückanalyse!$E$3*Gesamtanalyse!K68) -> 882.4210526 | M68: =(Stückanalyse!$E$26*Gesamtanalyse!K68)+(Stückanalyse!$D$26*Gesamtanalyse!K68*Gesamtanalyse!K68) -> 1505.668283 | N68: =(Stückanalyse!$E$28*Gesamtanalyse!K68)+(Stückanalyse!$D$28*Gesamtanalyse!K68*Gesamtanalyse!K68) -> -77.24376731 | O68: =(Stückanalyse!$E$30*Gesamtanalyse!K68)+(Stückanalyse!$D$30*Gesamtanalyse!K68*Gesamtanalyse!K68) -> 1011.776316 | P68: =Q68-L68 -> 129.3552632 | Q68: =IF(AND($M68<$N68,$M68>$O68),M68,IF(AND($N68>$O68,$M68>$O68),N68,O68)) -> 1011.776316 | R68: =L68+$D$12 -> 1306.914127
K69: 45.15789474 | L69: =Stückanalyse!$F$3+(Stückanalyse!$E$3*Gesamtanalyse!K69) -> 887.0736842 | M69: =(Stückanalyse!$E$26*Gesamtanalyse!K69)+(Stückanalyse!$D$26*Gesamtanalyse!K69*Gesamtanalyse!K69) -> 1493.300277 | N69: =(Stückanalyse!$E$28*Gesamtanalyse!K69)+(Stückanalyse!$D$28*Gesamtanalyse!K69*Gesamtanalyse!K69) -> -152.5861496 | O69: =(Stückanalyse!$E$30*Gesamtanalyse!K69)+(Stückanalyse!$D$30*Gesamtanalyse!K69*Gesamtanalyse!K69) -> 997.9894737 | P69: 110.9157895 | Q69: 997.9894737 | R69: 1311.566759
K70: =$K$4+K69 -> 45.84210526 | L70: =Stückanalyse!$F$3+(Stückanalyse!$E$3*Gesamtanalyse!K70) -> 891.7263158 | M70: =(Stückanalyse!$E$26*Gesamtanalyse!K70)+(Stückanalyse!$D$26*Gesamtanalyse!K70*Gesamtanalyse!K70) -> 1479.85554 | N70: =(Stückanalyse!$E$28*Gesamtanalyse!K70)+(Stückanalyse!$D$28*Gesamtanalyse!K70*Gesamtanalyse!K70) -> -230.1756233 | O70: =(Stückanalyse!$E$30*Gesamtanalyse!K70)+(Stückanalyse!$D$30*Gesamtanalyse!K70*Gesamtanalyse!K70) -> 983.3131579 | P70: 91.58684211 | Q70: 983.3131579 | R70: 1316.219391
K71: 46.52631579 | L71: =Stückanalyse!$F$3+(Stückanalyse!$E$3*Gesamtanalyse!K71) -> 896.3789474 | M71: =(Stückanalyse!$E$26*Gesamtanalyse!K71)+(Stückanalyse!$D$26*Gesamtanalyse!K71*Gesamtanalyse!K71) -> 1465.334072 | N71: =(Stückanalyse!$E$28*Gesamtanalyse!K71)+(Stückanalyse!$D$28*Gesamtanalyse!K71*Gesamtanalyse!K71) -> -310.0121884 | O71: =(Stückanalyse!$E$30*Gesamtanalyse!K71)+(Stückanalyse!$D$30*Gesamtanalyse!K71*Gesamtanalyse!K71) -> 967.7473684 | P71: 71.36842105 | Q71: 967.7473684 | R71: 1320.872022
K72: 47.21052632 | L72: =Stückanalyse!$F$3+(Stückanalyse!$E$3*Gesamtanalyse!K72) -> 901.0315789 | M72: =(Stückanalyse!$E$26*Gesamtanalyse!K72)+(Stückanalyse!$D$26*Gesamtanalyse!K72*Gesamtanalyse!K72) -> 1449.735873 | N72: =(Stückanalyse!$E$28*Gesamtanalyse!K72)+(Stückanalyse!$D$28*Gesamtanalyse!K72*Gesamtanalyse!K72) -> -392.0958449 | O72: =(Stückanalyse!$E$30*Gesamtanalyse!K72)+(Stückanalyse!$D$30*Gesamtanalyse!K72*Gesamtanalyse!K72) -> 951.2921053 | P72: 50.26052632 | Q72: 951.2921053 | R72: 1325.524654
K73: 47.89473684 | L73: =Stückanalyse!$F$3+(Stückanalyse!$E$3*Gesamtanalyse!K73) -> 905.6842105 | M73: =(Stückanalyse!$E$26*Gesamtanalyse!K73)+(Stückanalyse!$D$26*Gesamtanalyse!K73*Gesamtanalyse!K73) -> 1433.060942 | N73: =(Stückanalyse!$E$28*Gesamtanalyse!K73)+(Stückanalyse!$D$28*Gesamtanalyse!K73*Gesamtanalyse!K73) -> -476.4265928 | O73: =(Stückanalyse!$E$30*Gesamtanalyse!K73)+(Stückanalyse!$D$30*Gesamtanalyse!K73*Gesamtanalyse!K73) -> 933.9473684 | P73: 28.26315789 | Q73: 933.9473684 | R73: 1330.177285
K74: 48.57894737 | L74: =Stückanalyse!$F$3+(Stückanalyse!$E$3*Gesamtanalyse!K74) -> 910.3368421 | M74: =(Stückanalyse!$E$26*Gesamtanalyse!K74)+(Stückanalyse!$D$26*Gesamtanalyse!K74*Gesamtanalyse!K74) -> 1415.30928 | N74: =(Stückanalyse!$E$28*Gesamtanalyse!K74)+(Stückanalyse!$D$28*Gesamtanalyse!K74*Gesamtanalyse!K74) -> -563.0044321 | O74: =(Stückanalyse!$E$30*Gesamtanalyse!K74)+(Stückanalyse!$D$30*Gesamtanalyse!K74*Gesamtanalyse!K74) -> 915.7131579 | P74: 5.376315789 | Q74: 915.7131579 | R74: 1334.829917
K75: 49.26315789 | L75: =Stückanalyse!$F$3+(Stückanalyse!$E$3*Gesamtanalyse!K75) -> 914.9894737 | M75: =(Stückanalyse!$E$26*Gesamtanalyse!K75)+(Stückanalyse!$D$26*Gesamtanalyse!K75*Gesamtanalyse!K75) -> 1396.480886 | N75: =(Stückanalyse!$E$28*Gesamtanalyse!K75)+(Stückanalyse!$D$28*Gesamtanalyse!K75*Gesamtanalyse!K75) -> -651.8293629 | O75: =(Stückanalyse!$E$30*Gesamtanalyse!K75)+(Stückanalyse!$D$30*Gesamtanalyse!K75*Gesamtanalyse!K75) -> 896.5894737 | P75: -18.4 | Q75: 896.5894737 | R75: 1339.482548
K76: 49.94736842 | L76: =Stückanalyse!$F$3+(Stückanalyse!$E$3*Gesamtanalyse!K76) -> 919.6421053 | M76: =(Stückanalyse!$E$26*Gesamtanalyse!K76)+(Stückanalyse!$D$26*Gesamtanalyse!K76*Gesamtanalyse!K76) -> 1376.575762 | N76: =(Stückanalyse!$E$28*Gesamtanalyse!K76)+(Stückanalyse!$D$28*Gesamtanalyse!K76*Gesamtanalyse!K76) -> -742.901385 | O76: =(Stückanalyse!$E$30*Gesamtanalyse!K76)+(Stückanalyse!$D$30*Gesamtanalyse!K76*Gesamtanalyse!K76) -> 876.5763158 | P76: -43.06578947 | Q76: 876.5763158 | R76: 1344.13518
K77: 50.63157895 | L77: =Stückanalyse!$F$3+(Stückanalyse!$E$3*Gesamtanalyse!K77) -> 924.2947368 | M77: =(Stückanalyse!$E$26*Gesamtanalyse!K77)+(Stückanalyse!$D$26*Gesamtanalyse!K77*Gesamtanalyse!K77) -> 1355.593906 | N77: =(Stückanalyse!$E$28*Gesamtanalyse!K77)+(Stückanalyse!$D$28*Gesamtanalyse!K77*Gesamtanalyse!K77) -> -836.2204986 | O77: =(Stückanalyse!$E$30*Gesamtanalyse!K77)+(Stückanalyse!$D$30*Gesamtanalyse!K77*Gesamtanalyse!K77) -> 855.6736842 | P77: -68.62105263 | Q77: 855.6736842 | R77: 1348.787812
K78: 51.31578947 | L78: =Stückanalyse!$F$3+(Stückanalyse!$E$3*Gesamtanalyse!K78) -> 928.9473684 | M78: =(Stückanalyse!$E$26*Gesamtanalyse!K78)+(Stückanalyse!$D$26*Gesamtanalyse!K78*Gesamtanalyse!K78) -> 1333.535319 | N78: =(Stückanalyse!$E$28*Gesamtanalyse!K78)+(Stückanalyse!$D$28*Gesamtanalyse!K78*Gesamtanalyse!K78) -> -931.7867036 | O78: =(Stückanalyse!$E$30*Gesamtanalyse!K78)+(Stückanalyse!$D$30*Gesamtanalyse!K78*Gesamtanalyse!K78) -> 833.8815789 | P78: -95.06578947 | Q78: 833.8815789 | R78: 1353.440443
K79: 52 | L79: =Stückanalyse!$F$3+(Stückanalyse!$E$3*Gesamtanalyse!K79) -> 933.6 | M79: =(Stückanalyse!$E$26*Gesamtanalyse!K79)+(Stückanalyse!$D$26*Gesamtanalyse!K79*Gesamtanalyse!K79) -> 1310.4 | N79: =(Stückanalyse!$E$28*Gesamtanalyse!K79)+(Stückanalyse!$D$28*Gesamtanalyse!K79*Gesamtanalyse!K79) -> -1029.6 | O79: =(Stückanalyse!$E$30*Gesamtanalyse!K79)+(Stückanalyse!$D$30*Gesamtanalyse!K79*Gesamtanalyse!K79) -> 811.2 | P79: -122.4 | Q79: 811.2 | R79: 1358.093075
K80: 52.68421053 | L80: =Stückanalyse!$F$3+(Stückanalyse!$E$3*Gesamtanalyse!K80) -> 938.2526316 | M80: =(Stückanalyse!$E$26*Gesamtanalyse!K80)+(Stückanalyse!$D$26*Gesamtanalyse!K80*Gesamtanalyse!K80) -> 1286.18795 | N80: =(Stückanalyse!$E$28*Gesamtanalyse!K80)+(Stückanalyse!$D$28*Gesamtanalyse!K80*Gesamtanalyse!K80) -> -1129.660388 | O80: =(Stückanalyse!$E$30*Gesamtanalyse!K80)+(Stückanalyse!$D$30*Gesamtanalyse!K80*Gesamtanalyse!K80) -> 787.6289474 | P80: -150.6236842 | Q80: 787.6289474 | R80: 1362.745706
K81: 53.36842105 | L81: =Stückanalyse!$F$3+(Stückanalyse!$E$3*Gesamtanalyse!K81) -> 942.9052632 | M81: =(Stückanalyse!$E$26*Gesamtanalyse!K81)+(Stückanalyse!$D$26*Gesamtanalyse!K81*Gesamtanalyse!K81) -> 1260.899169 | N81: =(Stückanalyse!$E$28*Gesamtanalyse!K81)+(Stückanalyse!$D$28*Gesamtanalyse!K81*Gesamtanalyse!K81) -> -1231.967867 | O81: =(Stückanalyse!$E$30*Gesamtanalyse!K81)+(Stückanalyse!$D$30*Gesamtanalyse!K81*Gesamtanalyse!K81) -> 763.1684211 | P81: -179.7368421 | Q81: 763.1684211 | R81: 1367.398338
K82: 54.05263158 | L82: =Stückanalyse!$F$3+(Stückanalyse!$E$3*Gesamtanalyse!K82) -> 947.5578947 | M82: =(Stückanalyse!$E$26*Gesamtanalyse!K82)+(Stückanalyse!$D$26*Gesamtanalyse!K82*Gesamtanalyse!K82) -> 1234.533657 | N82: =(Stückanalyse!$E$28*Gesamtanalyse!K82)+(Stückanalyse!$D$28*Gesamtanalyse!K82*Gesamtanalyse!K82) -> -1336.522438 | O82: =(Stückanalyse!$E$30*Gesamtanalyse!K82)+(Stückanalyse!$D$30*Gesamtanalyse!K82*Gesamtanalyse!K82) -> 737.8184211 | P82: -209.7394737 | Q82: 737.8184211 | R82: 1372.05097
K83: 54.73684211 | L83: =Stückanalyse!$F$3+(Stückanalyse!$E$3*Gesamtanalyse!K83) -> 952.2105263 | M83: =(Stückanalyse!$E$26*Gesamtanalyse!K83)+(Stückanalyse!$D$26*Gesamtanalyse!K83*Gesamtanalyse!K83) -> 1207.091413 | N83: =(Stückanalyse!$E$28*Gesamtanalyse!K83)+(Stückanalyse!$D$28*Gesamtanalyse!K83*Gesamtanalyse!K83) -> -1443.3241 | O83: =(Stückanalyse!$E$30*Gesamtanalyse!K83)+(Stückanalyse!$D$30*Gesamtanalyse!K83*Gesamtanalyse!K83) -> 711.5789474 | P83: -240.6315789 | Q83: 711.5789474 | R83: 1376.703601
K84: 55.42105263 | L84: =Stückanalyse!$F$3+(Stückanalyse!$E$3*Gesamtanalyse!K84) -> 956.8631579 | M84: =(Stückanalyse!$E$26*Gesamtanalyse!K84)+(Stückanalyse!$D$26*Gesamtanalyse!K84*Gesamtanalyse!K84) -> 1178.572438 | N84: =(Stückanalyse!$E$28*Gesamtanalyse!K84)+(Stückanalyse!$D$28*Gesamtanalyse!K84*Gesamtanalyse!K84) -> -1552.372853 | O84: =(Stückanalyse!$E$30*Gesamtanalyse!K84)+(Stückanalyse!$D$30*Gesamtanalyse!K84*Gesamtanalyse!K84) -> 684.45 | P84: -272.4131579 | Q84: 684.45 | R84: 1381.356233
K85: 56.10526316 | L85: =Stückanalyse!$F$3+(Stückanalyse!$E$3*Gesamtanalyse!K85) -> 961.5157895 | M85: =(Stückanalyse!$E$26*Gesamtanalyse!K85)+(Stückanalyse!$D$26*Gesamtanalyse!K85*Gesamtanalyse!K85) -> 1148.976731 | N85: =(Stückanalyse!$E$28*Gesamtanalyse!K85)+(Stückanalyse!$D$28*Gesamtanalyse!K85*Gesamtanalyse!K85) -> -1663.668698 | O85: =(Stückanalyse!$E$30*Gesamtanalyse!K85)+(Stückanalyse!$D$30*Gesamtanalyse!K85*Gesamtanalyse!K85) -> 656.4315789 | P85: -305.0842105 | Q85: 656.4315789 | R85: 1386.008864
K86: 56.78947368 | L86: =Stückanalyse!$F$3+(Stückanalyse!$E$3*Gesamtanalyse!K86) -> 966.1684211 | M86: =(Stückanalyse!$E$26*Gesamtanalyse!K86)+(Stückanalyse!$D$26*Gesamtanalyse!K86*Gesamtanalyse!K86) -> 1118.304294 | N86: =(Stückanalyse!$E$28*Gesamtanalyse!K86)+(Stückanalyse!$D$28*Gesamtanalyse!K86*Gesamtanalyse!K86) -> -1777.211634 | O86: =(Stückanalyse!$E$30*Gesamtanalyse!K86)+(Stückanalyse!$D$30*Gesamtanalyse!K86*Gesamtanalyse!K86) -> 627.5236842 | P86: -338.6447368 | Q86: 627.5236842 | R86: 1390.661496
K87: 57.47368421 | L87: =Stückanalyse!$F$3+(Stückanalyse!$E$3*Gesamtanalyse!K87) -> 970.8210526 | M87: =(Stückanalyse!$E$26*Gesamtanalyse!K87)+(Stückanalyse!$D$26*Gesamtanalyse!K87*Gesamtanalyse!K87) -> 1086.555125 | N87: =(Stückanalyse!$E$28*Gesamtanalyse!K87)+(Stückanalyse!$D$28*Gesamtanalyse!K87*Gesamtanalyse!K87) -> -1893.001662 | O87: =(Stückanalyse!$E$30*Gesamtanalyse!K87)+(Stückanalyse!$D$30*Gesamtanalyse!K87*Gesamtanalyse!K87) -> 597.7263158 | P87: -373.0947368 | Q87: 597.7263158 | R87: 1395.314127
K88: 58.15789474 | L88: =Stückanalyse!$F$3+(Stückanalyse!$E$3*Gesamtanalyse!K88) -> 975.4736842 | M88: =(Stückanalyse!$E$26*Gesamtanalyse!K88)+(Stückanalyse!$D$26*Gesamtanalyse!K88*Gesamtanalyse!K88) -> 1053.729224 | N88: =(Stückanalyse!$E$28*Gesamtanalyse!K88)+(Stückanalyse!$D$28*Gesamtanalyse!K88*Gesamtanalyse!K88) -> -2011.038781 | O88: =(Stückanalyse!$E$30*Gesamtanalyse!K88)+(Stückanalyse!$D$30*Gesamtanalyse!K88*Gesamtanalyse!K88) -> 567.0394737 | P88: -408.4342105 | Q88: 567.0394737 | R88: 1399.966759
K89: 58.84210526 | L89: =Stückanalyse!$F$3+(Stückanalyse!$E$3*Gesamtanalyse!K89) -> 980.1263158 | M89: =(Stückanalyse!$E$26*Gesamtanalyse!K89)+(Stückanalyse!$D$26*Gesamtanalyse!K89*Gesamtanalyse!K89) -> 1019.826593 | N89: =(Stückanalyse!$E$28*Gesamtanalyse!K89)+(Stückanalyse!$D$28*Gesamtanalyse!K89*Gesamtanalyse!K89) -> -2131.322992 | O89: =(Stückanalyse!$E$30*Gesamtanalyse!K89)+(Stückanalyse!$D$30*Gesamtanalyse!K89*Gesamtanalyse!K89) -> 535.4631579 | P89: -444.6631579 | Q89: 535.4631579 | R89: 1404.619391
K90: 59.52631579 | L90: =Stückanalyse!$F$3+(Stückanalyse!$E$3*Gesamtanalyse!K90) -> 984.7789474 | M90: =(Stückanalyse!$E$26*Gesamtanalyse!K90)+(Stückanalyse!$D$26*Gesamtanalyse!K90*Gesamtanalyse!K90) -> 984.8472299 | N90: =(Stückanalyse!$E$28*Gesamtanalyse!K90)+(Stückanalyse!$D$28*Gesamtanalyse!K90*Gesamtanalyse!K90) -> -2253.854294 | O90: =(Stückanalyse!$E$30*Gesamtanalyse!K90)+(Stückanalyse!$D$30*Gesamtanalyse!K90*Gesamtanalyse!K90) -> 502.9973684 | P90: -481.7815789 | Q90: 502.9973684 | R90: 1409.272022
K91: 60.21052632 | L91: =Stückanalyse!$F$3+(Stückanalyse!$E$3*Gesamtanalyse!K91) -> 989.4315789 | M91: =(Stückanalyse!$E$26*Gesamtanalyse!K91)+(Stückanalyse!$D$26*Gesamtanalyse!K91*Gesamtanalyse!K91) -> 948.7911357 | N91: =(Stückanalyse!$E$28*Gesamtanalyse!K91)+(Stückanalyse!$D$28*Gesamtanalyse!K91*Gesamtanalyse!K91) -> -2378.632687 | O91: =(Stückanalyse!$E$30*Gesamtanalyse!K91)+(Stückanalyse!$D$30*Gesamtanalyse!K91*Gesamtanalyse!K91) -> 469.6421053 | P91: -519.7894737 | Q91: 469.6421053 | R91: 1413.924654
K92: 60.89473684 | L92: =Stückanalyse!$F$3+(Stückanalyse!$E$3*Gesamtanalyse!K92) -> 994.0842105 | M92: =(Stückanalyse!$E$26*Gesamtanalyse!K92)+(Stückanalyse!$D$26*Gesamtanalyse!K92*Gesamtanalyse!K92) -> 911.6583102 | N92: =(Stückanalyse!$E$28*Gesamtanalyse!K92)+(Stückanalyse!$D$28*Gesamtanalyse!K92*Gesamtanalyse!K92) -> -2505.658172 | O92: =(Stückanalyse!$E$30*Gesamtanalyse!K92)+(Stückanalyse!$D$30*Gesamtanalyse!K92*Gesamtanalyse!K92) -> 435.3973684 | P92: -558.6868421 | Q92: 435.3973684 | R92: 1418.577285
K93: 61.57894737 | L93: =Stückanalyse!$F$3+(Stückanalyse!$E$3*Gesamtanalyse!K93) -> 998.7368421 | M93: =(Stückanalyse!$E$26*Gesamtanalyse!K93)+(Stückanalyse!$D$26*Gesamtanalyse!K93*Gesamtanalyse!K93) -> 873.4487535 | N93: =(Stückanalyse!$E$28*Gesamtanalyse!K93)+(Stückanalyse!$D$28*Gesamtanalyse!K93*Gesamtanalyse!K93) -> -2634.930748 | O93: =(Stückanalyse!$E$30*Gesamtanalyse!K93)+(Stückanalyse!$D$30*Gesamtanalyse!K93*Gesamtanalyse!K93) -> 400.2631579 | P93: -598.4736842 | Q93: 400.2631579 | R93: 1423.229917
K94: 62.26315789 | L94: =Stückanalyse!$F$3+(Stückanalyse!$E$3*Gesamtanalyse!K94) -> 1003.389474 | M94: =(Stückanalyse!$E$26*Gesamtanalyse!K94)+(Stückanalyse!$D$26*Gesamtanalyse!K94*Gesamtanalyse!K94) -> 834.1624654 | N94: =(Stückanalyse!$E$28*Gesamtanalyse!K94)+(Stückanalyse!$D$28*Gesamtanalyse!K94*Gesamtanalyse!K94) -> -2766.450416 | O94: =(Stückanalyse!$E$30*Gesamtanalyse!K94)+(Stückanalyse!$D$30*Gesamtanalyse!K94*Gesamtanalyse!K94) -> 364.2394737 | P94: -639.15 | Q94: 364.2394737 | R94: 1427.882548
K95: 62.94736842 | L95: =Stückanalyse!$F$3+(Stückanalyse!$E$3*Gesamtanalyse!K95) -> 1008.042105 | M95: =(Stückanalyse!$E$26*Gesamtanalyse!K95)+(Stückanalyse!$D$26*Gesamtanalyse!K95*Gesamtanalyse!K95) -> 793.799446 | N95: =(Stückanalyse!$E$28*Gesamtanalyse!K95)+(Stückanalyse!$D$28*Gesamtanalyse!K95*Gesamtanalyse!K95) -> -2900.217175 | O95: =(Stückanalyse!$E$30*Gesamtanalyse!K95)+(Stückanalyse!$D$30*Gesamtanalyse!K95*Gesamtanalyse!K95) -> 327.3263158 | P95: -680.7157895 | Q95: 327.3263158 | R95: 1432.53518
K96: 63.63157895 | L96: =Stückanalyse!$F$3+(Stückanalyse!$E$3*Gesamtanalyse!K96) -> 1012.694737 | M96: =(Stückanalyse!$E$26*Gesamtanalyse!K96)+(Stückanalyse!$D$26*Gesamtanalyse!K96*Gesamtanalyse!K96) -> 752.3596953 | N96: =(Stückanalyse!$E$28*Gesamtanalyse!K96)+(Stückanalyse!$D$28*Gesamtanalyse!K96*Gesamtanalyse!K96) -> -3036.231025 | O96: =(Stückanalyse!$E$30*Gesamtanalyse!K96)+(Stückanalyse!$D$30*Gesamtanalyse!K96*Gesamtanalyse!K96) -> 289.5236842 | P96: -723.1710526 | Q96: 289.5236842 | R96: 1437.187812
K97: 64.31578947 | L97: =Stückanalyse!$F$3+(Stückanalyse!$E$3*Gesamtanalyse!K97) -> 1017.347368 | M97: =(Stückanalyse!$E$26*Gesamtanalyse!K97)+(Stückanalyse!$D$26*Gesamtanalyse!K97*Gesamtanalyse!K97) -> 709.8432133 | N97: =(Stückanalyse!$E$28*Gesamtanalyse!K97)+(Stückanalyse!$D$28*Gesamtanalyse!K97*Gesamtanalyse!K97) -> -3174.491967 | O97: =(Stückanalyse!$E$30*Gesamtanalyse!K97)+(Stückanalyse!$D$30*Gesamtanalyse!K97*Gesamtanalyse!K97) -> 250.8315789 | P97: -766.5157895 | Q97: 250.8315789 | R97: 1441.840443
K98: 65 | L98: =Stückanalyse!$F$3+(Stückanalyse!$E$3*Gesamtanalyse!K98) -> 1022 | M98: =(Stückanalyse!$E$26*Gesamtanalyse!K98)+(Stückanalyse!$D$26*Gesamtanalyse!K98*Gesamtanalyse!K98) -> 666.25 | N98: =(Stückanalyse!$E$28*Gesamtanalyse!K98)+(Stückanalyse!$D$28*Gesamtanalyse!K98*Gesamtanalyse!K98) -> -3315 | O98: =(Stückanalyse!$E$30*Gesamtanalyse!K98)+(Stückanalyse!$D$30*Gesamtanalyse!K98*Gesamtanalyse!K98) -> 211.25 | P98: -810.75 | Q98: 211.25 | R98: 1446.493075
K99: 65.68421053 | L99: =Stückanalyse!$F$3+(Stückanalyse!$E$3*Gesamtanalyse!K99) -> 1026.652632 | M99: =(Stückanalyse!$E$26*Gesamtanalyse!K99)+(Stückanalyse!$D$26*Gesamtanalyse!K99*Gesamtanalyse!K99) -> 621.5800554 | N99: =(Stückanalyse!$E$28*Gesamtanalyse!K99)+(Stückanalyse!$D$28*Gesamtanalyse!K99*Gesamtanalyse!K99) -> -3457.755125 | O99: =(Stückanalyse!$E$30*Gesamtanalyse!K99)+(Stückanalyse!$D$30*Gesamtanalyse!K99*Gesamtanalyse!K99) -> 170.7789474 | P99: -855.8736842 | Q99: 170.7789474 | R99: 1451.145706
K100: 66.36842105 | L100: =Stückanalyse!$F$3+(Stückanalyse!$E$3*Gesamtanalyse!K100) -> 1031.305263 | M100: =(Stückanalyse!$E$26*Gesamtanalyse!K100)+(Stückanalyse!$D$26*Gesamtanalyse!K100*Gesamtanalyse!K100) -> 575.8333795 | N100: =(Stückanalyse!$E$28*Gesamtanalyse!K100)+(Stückanalyse!$D$28*Gesamtanalyse!K100*Gesamtanalyse!K100) -> -3602.757341 | O100: =(Stückanalyse!$E$30*Gesamtanalyse!K100)+(Stückanalyse!$D$30*Gesamtanalyse!K100*Gesamtanalyse!K100) -> 129.4184211 | P100: -901.8868421 | Q100: 129.4184211 | R100: 1455.798338
K101: 67.05263158 | L101: =Stückanalyse!$F$3+(Stückanalyse!$E$3*Gesamtanalyse!K101) -> 1035.957895 | M101: =(Stückanalyse!$E$26*Gesamtanalyse!K101)+(Stückanalyse!$D$26*Gesamtanalyse!K101*Gesamtanalyse!K101) -> 529.0099723 | N101: =(Stückanalyse!$E$28*Gesamtanalyse!K101)+(Stückanalyse!$D$28*Gesamtanalyse!K101*Gesamtanalyse!K101) -> -3750.006648 | O101: =(Stückanalyse!$E$30*Gesamtanalyse!K101)+(Stückanalyse!$D$30*Gesamtanalyse!K101*Gesamtanalyse!K101) -> 87.16842105 | P101: -948.7894737 | Q101: 87.16842105 | R101: 1460.45097
K102: 67.73684211 | L102: =Stückanalyse!$F$3+(Stückanalyse!$E$3*Gesamtanalyse!K102) -> 1040.610526 | M102: =(Stückanalyse!$E$26*Gesamtanalyse!K102)+(Stückanalyse!$D$26*Gesamtanalyse!K102*Gesamtanalyse!K102) -> 481.1098338 | N102: =(Stückanalyse!$E$28*Gesamtanalyse!K102)+(Stückanalyse!$D$28*Gesamtanalyse!K102*Gesamtanalyse!K102) -> -3899.503047 | O102: =(Stückanalyse!$E$30*Gesamtanalyse!K102)+(Stückanalyse!$D$30*Gesamtanalyse!K102*Gesamtanalyse!K102) -> 44.02894737 | P102: -996.5815789 | Q102: 44.02894737 | R102: 1465.103601
K103: =Stückanalyse!F32 -> 68.42105263 | L103: =Stückanalyse!$F$3+(Stückanalyse!$E$3*Gesamtanalyse!K103) -> 1045.263158 | M103: =(Stückanalyse!$E$26*Gesamtanalyse!K103)+(Stückanalyse!$D$26*Gesamtanalyse!K103*Gesamtanalyse!K103) -> 432.132964 | N103: =(Stückanalyse!$E$28*Gesamtanalyse!K103)+(Stückanalyse!$D$28*Gesamtanalyse!K103*Gesamtanalyse!K103) -> -4051.246537 | O103: =(Stückanalyse!$E$30*Gesamtanalyse!K103)+(Stückanalyse!$D$30*Gesamtanalyse!K103*Gesamtanalyse!K103) -> 0 | P103: -1045.263158 | Q103: 0 | R103: 1469.756233

Sheet Funktionen
B4: Aufgabe 1 | D4: Aufgabe 2 | F4: Aufgabe 3 | H4: Aufgabe 4 | J4: Aufgabe 5 | L4: Aufgabe 6 | N4: Aufgabe 7 | P4: Aufgabe 8
A5: K | B5: 4 | C5: 5100 | D5: 2 | E5: 2450 | F5: 14 | G5: 5000 | H5: 5 | I5: 450 | J5: 5 | K5: 450 | L5: 4 | M5: 2950 | N5: 6.8 | O5: 580 | P5: 9 | Q5: 3250
A6: PAF1 | B6: -0.00125 | C6: 15 | D6: -0.45 | E6: 92 | F6: -0.2 | G6: 100 | H6: -0.2 | I6: 200 | J6: -0.45 | K6: 1000 | L6: -0.355 | M6: 85 | N6: -1.15 | O6: 85 | P6: -0.1985 | Q6: 100
A7: PAF2 | B7: -0.01 | C7: 22 | D7: -0.85 | E7: 110.8 | F7: -0.5 | G7: 120 | H7: -0.5 | I7: 280 | J7: -0.85 | K7: 1200 | L7: -0.945 | M7: 120 | N7: -2.4 | O7: 105 | P7: -0.5015 | Q7: 120
A8: PAF3 | B8: -0.002 | C8: 12 | D8: -0.3 | E8: 60 | F8: -0.1 | G8: 60 | H8: -0.1 | I8: 100 | J8: -0.55 | K8: 900 | L8: -0.295 | M8: 65 | N8: -0.95 | O8: 65 | P8: -0.1055 | Q8: 60
B10: Aufgabe 9 | D10: Aufgabe 10 | F10: Aufgabe 10 | H10: Aufgabe 11 | J10: Aufgabe 12 | L10: Aufgabe 13 | N10: Aufgabe 14 | P10: Aufgabe 15
A11: K | B11: 5.8 | C11: 1900 | D11: 89 | E11: 29950 | F11: 12 | G11: 5100 | H11: 65 | I11: 650 | J11: 45 | K11: 4500 | L11: 477.5 | M11: 120000 | N11: 25 | O11: 15 | P11: 4 | Q11: 2500
A12: PAF1 | B12: -0.45 | C12: 92 | D12: -2.2 | E12: 920 | F12: -0.25 | G12: 150 | H12: -0.4 | I12: 115 | J12: -0.5 | K12: 210 | L12: -0.2 | M12: 1200 | N12: -2 | O12: 50 | P12: -0.002 | Q12: 16
A13: PAF2 | B13: -1.25 | C13: 125 | D13: -4.4 | E13: 1100 | F13: -0.5 | G13: 190 | H13: -1 | I13: 130 | J13: -0.75 | K13: 225 | L13: -0.85 | M13: 1400 | N13: -5 | O13: 80 | P13: -0.01 | Q13: 22
A14: PAF3 | B14: -0.3 | C14: 55 | D14: -3.1 | E14: 925 | F14: -0.25 | G14: 120 | H14: -0.4 | I14: 109 | J14: -0.3 | K14: 171 | L14: -0.55 | M14: 1000 | N14: -1 | O14: 30 | P14: -0.002 | Q14: 15
A17: K | B17: 40 | C17: 500 | D17: 4 | E17: 4500 | F17: 9 | G17: 1900
A18: PAF1 | B18: -0.5 | C18: 105 | D18: -0.42 | E18: 15 | F18: -0.45 | G18: 92
A19: PAF2 | B19: -1 | C19: 120 | D19: -0.85 | E19: 22 | F19: -1.25 | G19: 125
A20: PAF3 | B20: -0.4 | C20: 90 | D20: -0.35 | E20: 12 | F20: -0.3 | G20: 55
